fUSD/lending_fUSD_20250806
["ID","MTS","AMOUNT","RATE_DAILY","PERIOD"]
[377564269,1754442709771,-400.0,0.00036712,14]
[377564270,1754442709780,-400.0,0.00036712,14]
[377564271,1754442709790,-1704.16,0.00036712,14]
[377564272,1754442709801,-755.14,0.00036712,14]
[377564273,1754442709810,-458.11,0.00036712,14]
[377564274,1754442709819,-1361.3,0.00036712,14]
[377564275,1754442709829,-1657.6,0.00036712,14]
[377564276,1754442709839,-492.58655858,0.00036712,14]
[377564277,1754442709848,-298.02,0.00036712,14]
[377564278,1754442709857,-464.59,0.00036712,14]
[377564279,1754442709866,-400.0,0.00036712,14]
[377564280,1754442709876,-1359.03,0.00036712,14]
[377564281,1754442709885,-928.51,0.00036712,14]
[377564282,1754442709894,-447.16,0.00036712,14]
[377564283,1754442709904,-400.0,0.00036712,14]
[377564284,1754442709913,-935.48,0.00036712,14]
[377564285,1754442709923,-400.0,0.00036712,14]
[377564286,1754442709932,-1737.65,0.00036712,14]
[377564287,1754442709941,-475.44,0.00036712,14]
[377564288,1754442709952,-964.89,0.00036712,14]
[377564289,1754442709970,-400.0,0.00036712,14]
[377564290,1754442709980,-2063.67,0.00036712,14]
[377564291,1754442709991,-1013.66,0.00036712,14]
[377564292,1754442710000,-1126.47,0.00036712,14]
[377564293,1754442710012,-2309.93,0.00036712,14]
[377564294,1754442710023,-984.53,0.00036712,14]
[377564295,1754442710032,-1638.91,0.00036712,14]
[377564296,1754442710043,-400.0,0.00036712,14]
[377564297,1754442710054,-1286.0,0.00036712,14]
[377564298,1754442710063,-1466.99,0.00036712,14]
[377564299,1754442710072,-400.0,0.00036712,14]
[377564300,1754442710081,-857.1,0.00036712,14]
[377564301,1754442710091,-1077.2,0.00036712,14]
[377564302,1754442710100,-962.77,0.00036712,14]
[377564303,1754442710109,-480.49415763,0.00036712,14]
[377564304,1754442710118,-400.0,0.00036712,14]
[377564305,1754442710127,-1979.59,0.00036712,14]
[377564306,1754442710137,-1044.87,0.00036712,14]
[377564307,1754442710146,-1728.26,0.00036712,14]
[377564308,1754442710155,-832.44,0.00036712,14]
[377564309,1754442710165,-1048.15,0.00036712,14]
[377564310,1754442710174,-1020.28,0.00036712,14]
[377564311,1754442710183,-1132.04,0.00036712,14]
[377564312,1754442710192,-400.0,0.00036712,14]
[377564313,1754442710202,-400.0,0.00036712,14]
[377564314,1754442710212,-668.93,0.00036712,14]
[377564315,1754442710221,-939.42,0.00036712,14]
[377564316,1754442710233,-2214.94,0.00036712,14]
[377564317,1754442710242,-1666.74,0.00036712,14]
[377564318,1754442710251,-400.0,0.00036712,14]
[377564319,1754442710260,-457.75,0.00036712,14]
[377564320,1754442710270,-2316.2,0.00036712,14]
[377564321,1754442710393,-923.76,0.00036712,14]
[377564322,1754442710402,-728.39,0.00036712,14]
[377564323,1754442710412,-400.0,0.00036712,14]
[377564324,1754442710423,-1498.11,0.00036712,14]
[377564325,1754442710433,-1040.17,0.00036712,14]
[377564326,1754442710443,-400.0,0.00036712,14]
[377564327,1754442710453,-400.0,0.00036712,14]
[377564328,1754442710467,-2864.39,0.00036712,14]
[377564329,1754442710476,-400.0,0.00036712,14]
[377564330,1754442710485,-1180.49,0.00036712,14]
[377564331,1754442710494,-400.0,0.00036712,14]
[377564332,1754442710503,-1311.83,0.00036712,14]
[377564333,1754442710513,-1834.0,0.00036712,14]
[377564334,1754442710522,-400.0,0.00036712,14]
[377564335,1754442710531,-1955.23,0.00036712,14]
[377564336,1754442710540,-538.12,0.00036712,14]
[377564337,1754442710549,-238.67040533,0.00036712,14]
[377564338,1754442710558,-1244.43,0.00036712,14]
[377564339,1754442710568,-400.0,0.00036712,14]
[377564340,1754442710577,-1662.24,0.00036712,14]
[377564341,1754442710586,-657.65,0.00036712,14]
[377564342,1754442710595,-815.87,0.00036712,14]
[377564343,1754442710604,-953.1,0.00036712,14]
[377564344,1754442710613,-400.0,0.00036712,14]
[377564345,1754442710622,-563.55,0.00036712,14]
[377564346,1754442710631,-400.0,0.00036712,14]
[377564347,1754442710640,-400.0,0.00036712,14]
[377564348,1754442710650,-914.6,0.00036712,14]
[377564349,1754442710658,-1102.55,0.00036712,14]
[377564350,1754442710668,-400.0,0.00036712,14]
[377564351,1754442710676,-1700.2,0.00036712,14]
[377564352,1754442710685,-365.27933096,0.00036712,14]
[377564353,1754442710694,-525.87,0.00036712,14]
[377564355,1754442710703,-277.51645116,0.00036712,14]
[377564356,1754442710713,-1677.48,0.00036712,14]
[377564357,1754442710721,-1122.22,0.00036712,14]
[377564358,1754442710730,-615.99,0.00036712,14]
[377564359,1754442710739,-400.0,0.00036712,14]
[377564360,1754442710748,-691.75,0.00036712,14]
[377564361,1754442710757,-1339.53,0.00036712,14]
[377564362,1754442710766,-400.0,0.00036712,14]
[377564363,1754442710775,-1673.07,0.00036712,14]
[377564364,1754442710785,-3039.76,0.00036712,14]
[377564365,1754442710794,-1742.18,0.00036712,14]
[377564366,1754442710803,-400.0,0.00036712,14]
[377564367,1754442710813,-3124.83,0.00036712,14]
[377564368,1754442710823,-2935.07,0.00036712,14]
[377564369,1754442710832,-400.0,0.00036712,14]
[377564370,1754442710840,-400.0,0.00036712,14]
[377564371,1754442710849,-1838.67,0.00036712,14]
[377564372,1754442710858,-609.9,0.00036712,14]
[377564373,1754442710867,-400.0,0.00036712,14]
[377564374,1754442710876,-400.0,0.00036712,14]
[377564375,1754442710885,-991.95,0.00036712,14]
[377564376,1754442710894,-1655.86,0.00036712,14]
[377564377,1754442710904,-3327.96,0.00036712,14]
[377564378,1754442710912,-199.21,0.00036712,14]
[377564379,1754442710922,-1352.76,0.00036712,14]
[377564380,1754442710930,-2954.23,0.00036712,14]
[377564381,1754442710939,-566.14,0.00036712,14]
[377564382,1754442710949,-686.21,0.00036712,14]
[377564383,1754442710959,-400.0,0.00036712,14]
[377564384,1754442710972,-400.0,0.00036712,14]
[377564385,1754442710981,-438.37,0.00036712,14]
[377564386,1754442710993,-1748.91,0.00036712,14]
[377564387,1754442711002,-2547.69,0.00036712,14]
[377564388,1754442711012,-400.0,0.00036712,14]
[377564389,1754442711023,-3490.04,0.00036712,14]
[377564390,1754442711035,-1448.31,0.00036712,14]
[377564391,1754442711044,-400.0,0.00036712,14]
[377564392,1754442711054,-400.0,0.00036712,14]
[377564393,1754442711065,-413.35280046,0.00036712,14]
[377564394,1754442711076,-1267.64,0.00036712,14]
[377564395,1754442711085,-1802.79,0.00036712,14]
[377564396,1754442711095,-784.29,0.00036712,14]
[377564397,1754442711104,-400.0,0.00036712,14]
[377564398,1754442711113,-400.0,0.00036712,14]
[377564399,1754442711122,-1837.22,0.00036712,14]
[377564400,1754442711132,-400.0,0.00036712,14]
[377564401,1754442711141,-400.0,0.00036712,14]
[377564402,1754442711151,-634.12,0.00036712,14]
[377564403,1754442711161,-3271.39,0.00036712,14]
[377564404,1754442711171,-1431.01,0.00036712,14]
[377564405,1754442711188,-4030.7,0.00036712,14]
[377564406,1754442711198,-423.14,0.00036712,14]
[377564407,1754442711207,-1890.7,0.00036712,14]
[377564408,1754442711218,-518.39,0.00036712,14]
[377564409,1754442711230,-799.06,0.00036712,14]
[377564410,1754442711241,-1061.15,0.00036712,14]
[377564411,1754442711251,-2300.35,0.00036712,14]
[377564412,1754442711260,-400.0,0.00036712,14]
[377564413,1754442711271,-1973.9,0.00036712,14]
[377564414,1754442711280,-414.66,0.00036712,14]
[377564415,1754442711289,-649.25,0.00036712,14]
[377564416,1754442711299,-400.0,0.00036712,14]
[377564417,1754442711309,-2403.69,0.00036712,14]
[377564418,1754442711319,-400.0,0.00036712,14]
[377564419,1754442711327,-1824.64,0.00036712,14]
[377564420,1754442711336,-400.0,0.00036712,14]
[377564421,1754442711345,-1727.1,0.00036712,14]
[377564422,1754442711354,-1000.4,0.00036712,14]
[377564423,1754442711363,-1599.77,0.00036712,14]
[377564424,1754442711372,-400.0,0.00036712,14]
[377564425,1754442711381,-400.0,0.00036712,14]
[377564426,1754442711390,-1144.07,0.00036712,14]
[377564427,1754442711400,-1861.93,0.00036712,14]
[377564428,1754442711409,-1695.92,0.00036712,14]
[377564429,1754442711418,-242.695014,0.00036712,7]
[377564430,1754442711427,-313.81252209,0.00036712,14]
[377564431,1754442711435,-4450.65,0.00036712,14]
[377564432,1754442711445,-242.695014,0.00036712,7]
[377564433,1754442711454,-1706.8,0.00036712,14]
[377564434,1754442711463,-932.87,0.00036712,14]
[377564435,1754442711472,-779.66,0.00036712,14]
[377564436,1754442711481,-400.0,0.00036712,14]
[377564437,1754442711490,-951.39,0.00036712,14]
[377564438,1754442711499,-1430.5,0.00036712,14]
[377564439,1754442711508,-2337.94,0.00036712,14]
[377564440,1754442711517,-421.9,0.00036712,14]
[377564441,1754442711526,-242.695014,0.00036712,7]
[377564442,1754442711535,-575.559924,0.00036712,7]
[377564443,1754442711544,-242.695014,0.00036712,7]
[377564444,1754442711553,-575.559924,0.00036712,7]
[377564445,1754442711562,-400.0,0.00036712,14]
[377564446,1754442711572,-400.0,0.00036712,14]
[377564447,1754442711581,-589.79,0.00036712,14]
[377564448,1754442711590,-1533.82,0.00036712,14]
[377564449,1754442711600,-400.0,0.00036712,14]
[377564450,1754442711609,-2493.45,0.00036712,14]
[377564451,1754442711618,-2089.35,0.00036712,14]
[377564452,1754442711628,-452.30450395,0.00036712,14]
[377564453,1754442711637,-2218.99,0.00036712,14]
[377564454,1754442711646,-841.47,0.00036712,14]
[377564455,1754442711655,-400.0,0.00036712,7]
[377564456,1754442711664,-575.559924,0.00036712,7]
[377564457,1754442711673,-868.89,0.00036712,14]
[377564458,1754442711682,-3396.05,0.00036712,14]
[377564459,1754442711691,-895.39,0.00036712,14]
[377564460,1754442711700,-575.559924,0.00036712,7]
[377564461,1754442711709,-1716.54,0.00036712,14]
[377564462,1754442711718,-400.0,0.00036712,14]
[377564463,1754442711727,-400.0,0.00036712,14]
[377564464,1754442711736,-1340.56,0.00036712,14]
[377564465,1754442711745,-400.0,0.00036712,14]
[377564466,1754442711754,-1353.01,0.00036712,14]
[377564467,1754442711763,-1603.32,0.00036712,14]
[377564468,1754442711772,-2276.37,0.00036712,14]
[377564469,1754442711781,-400.0,0.00036712,14]
[377564470,1754442711791,-583.8,0.00036712,14]
[377564471,1754442711800,-1428.62,0.00036712,14]
[377564472,1754442711809,-400.0,0.00036712,14]
[377564473,1754442711818,-1629.04,0.00036712,14]
[377564474,1754442711828,-2751.15,0.00036712,14]
[377564475,1754442711836,-772.55,0.00036712,14]
[377564476,1754442711845,-878.31,0.00036712,14]
[377564477,1754442711854,-400.0,0.00036712,14]
[377564478,1754442711863,-1325.14,0.00036712,14]
[377564479,1754442711872,-446.44523684,0.00036712,14]
[377564480,1754442711881,-1622.11,0.00036712,14]
[377564481,1754442711890,-444.96,0.00036712,14]
[377564482,1754442711899,-690.57,0.00036712,14]
[377564483,1754442711908,-1723.73,0.00036712,14]
[377564484,1754442711917,-5774.11,0.00036712,14]
[377564485,1754442711925,-2273.8,0.00036712,14]
[377564486,1754442711934,-1725.28,0.00036712,14]
[377564487,1754442711944,-400.0,0.00036712,14]
[377564488,1754442711953,-1180.48,0.00036712,14]
[377564489,1754442711962,-1303.85,0.00036712,14]
[377564490,1754442711972,-2418.19,0.00036712,14]
[377564491,1754442711981,-1418.71,0.00036712,14]
[377564492,1754442711990,-1589.73,0.00036712,14]
[377564493,1754442712002,-1483.39,0.00036712,14]
[377564494,1754442712011,-400.0,0.00036712,14]
[377564495,1754442712022,-821.53,0.00036712,14]
[377564496,1754442712033,-1287.81,0.00036712,14]
[377564497,1754442712042,-1703.45,0.00036712,14]
[377564498,1754442712053,-1498.57,0.00036712,14]
[377564499,1754442712062,-1983.78,0.00036712,14]
[377564500,1754442712070,-400.0,0.00036712,14]
[377564501,1754442712079,-1679.65,0.00036712,14]
[377564502,1754442712088,-3157.63,0.00036712,14]
[377564503,1754442712097,-687.98,0.00036712,14]
[377564504,1754442712106,-2307.34,0.00036712,14]
[377564505,1754442712115,-2415.95,0.00036712,14]
[377564506,1754442712124,-2679.13,0.00036712,14]
[377564507,1754442712133,-3177.96,0.00036712,14]
[377564508,1754442712142,-190.0,0.00036712,14]
[377564509,1754442712152,-747.81,0.00036712,14]
[377564510,1754442712163,-228.47892894,0.00036712,14]
[377564511,1754442712173,-1953.14,0.00036712,14]
[377564512,1754442712184,-404.81,0.00036712,14]
[377564513,1754442712193,-428.72,0.00036712,14]
[377564514,1754442712202,-1927.57,0.00036712,14]
[377564515,1754442712211,-697.32,0.00036712,14]
[377564516,1754442712221,-400.0,0.00036712,14]
[377564517,1754442712232,-555.16,0.00036712,14]
[377564518,1754442712243,-1949.72,0.00036712,14]
[377564519,1754442712253,-2417.38,0.00036712,14]
[377564520,1754442712263,-1541.25,0.00036712,14]
[377564521,1754442712274,-400.0,0.00036712,14]
[377564522,1754442712286,-2048.47,0.00036712,14]
[377564523,1754442712295,-2683.89,0.00036712,14]
[377564524,1754442712305,-551.19,0.00036712,14]
[377564525,1754442712315,-2392.06,0.00036712,14]
[377564526,1754442712325,-1796.75,0.00036712,14]
[377564527,1754442712335,-2641.67,0.00036712,14]
[377564528,1754442712344,-1705.98,0.00036712,14]
[377564529,1754442712354,-287.01455806,0.00036712,14]
[377564530,1754442712363,-1037.19,0.00036712,14]
[377564531,1754442712372,-527.27,0.00036712,14]
[377564532,1754442712382,-872.94,0.00036712,14]
[377564533,1754442712391,-627.84,0.00036712,14]
[377564534,1754442712400,-2665.06,0.00036712,14]
[377564535,1754442712410,-1314.63,0.00036712,14]
[377564536,1754442712419,-400.0,0.00036712,14]
[377564537,1754442712428,-1710.7,0.00036712,14]
[377564538,1754442712438,-427.48,0.00036712,14]
[377564539,1754442712448,-1376.11,0.00036712,14]
[377564540,1754442712461,-400.0,0.00036712,14]
[377564541,1754442712471,-2454.52,0.00036712,14]
[377564542,1754442712480,-765.61,0.00036712,14]
[377564543,1754442712490,-1470.65,0.00036712,14]
[377564544,1754442712499,-540.65,0.00036712,14]
[377564545,1754442712509,-2318.46,0.00036712,14]
[377564546,1754442712518,-2952.63,0.00036712,14]
[377564547,1754442712528,-400.0,0.00036712,14]
[377564548,1754442712539,-400.0,0.00036712,14]
[377564549,1754442712549,-1988.57,0.00036712,14]
[377564550,1754442712559,-400.0,0.00036712,14]
[377564551,1754442712568,-1460.27,0.00036712,14]
[377564552,1754442712577,-845.33,0.00036712,14]
[377564553,1754442712587,-400.0,0.00036712,14]
[377564554,1754442712596,-542.49,0.00036712,14]
[377564555,1754442712606,-2535.23,0.00036712,14]
[377564556,1754442712615,-438.71,0.00036712,14]
[377564557,1754442712624,-831.42,0.00036712,14]
[377564558,1754442712634,-430.36,0.00036712,14]
[377564559,1754442712643,-400.0,0.00036712,14]
[377564560,1754442712652,-638.79,0.00036712,14]
[377564561,1754442712661,-879.89,0.00036712,14]
[377564562,1754442712671,-411.62,0.00036712,14]
[377564563,1754442712680,-698.35,0.00036712,14]
[377564564,1754442712689,-1118.12,0.00036712,14]
[377564565,1754442712698,-1093.35,0.00036712,14]
[377564566,1754442712707,-1292.39,0.00036712,14]
[377564567,1754442712716,-1399.9,0.00036712,14]
[377564568,1754442712725,-861.63,0.00036712,14]
[377564569,1754442712734,-832.43,0.00036712,14]
[377564570,1754442712744,-865.54,0.00036712,14]
[377564571,1754442712753,-1672.62,0.00036712,14]
[377564572,1754442712762,-1841.38,0.00036712,14]
[377564573,1754442712772,-400.0,0.00036712,14]
[377564574,1754442712782,-400.0,0.00036712,14]
[377564575,1754442712791,-400.0,0.00036712,14]
[377564576,1754442712801,-2517.68,0.00036712,14]
[377564577,1754442712810,-828.45,0.00036712,14]
[377564578,1754442712819,-299.66339812,0.00036712,14]
[377564579,1754442712829,-1420.29,0.00036712,14]
[377564580,1754442712840,-766.86,0.00036712,14]
[377564581,1754442712849,-400.0,0.00036712,14]
[377564582,1754442712859,-1217.7,0.00036712,14]
[377564583,1754442712871,-2523.08,0.00036712,14]
[377564584,1754442712881,-2391.18,0.00036712,14]
[377564585,1754442712892,-1353.33,0.00036712,14]
[377564586,1754442712903,-4582.75,0.00036712,14]
[377564587,1754442712912,-510.52,0.00036712,14]
[377564588,1754442712923,-1444.34,0.00036712,14]
[377564589,1754442712933,-800.48,0.00036712,14]
[377564590,1754442712943,-2122.19,0.00036712,14]
[377564591,1754442712953,-3090.38,0.00036712,14]
[377564592,1754442712962,-400.0,0.00036712,14]
[377564593,1754442712972,-1505.83,0.00036712,14]
[377564594,1754442712982,-1675.42,0.00036712,14]
[377564595,1754442712991,-415.57,0.00036712,14]
[377564596,1754442713000,-329.04454074,0.00036712,14]
[377564597,1754442713009,-990.08,0.00036712,14]
[377564598,1754442713018,-400.0,0.00036712,14]
[377564599,1754442713028,-2315.03,0.00036712,14]
[377564600,1754442713037,-2465.39,0.00036712,14]
[377564601,1754442713046,-400.0,0.00036712,14]
[377564602,1754442713057,-1639.8,0.00036712,14]
[377564603,1754442713067,-400.0,0.00036712,14]
[377564604,1754442713076,-2484.1,0.00036712,14]
[377564605,1754442713087,-1134.9,0.00036712,14]
[377564606,1754442713097,-1606.33,0.00036712,14]
[377564607,1754442713106,-2010.04,0.00036712,14]
[377564608,1754442713117,-400.0,0.00036712,14]
[377564609,1754442713127,-300.0,0.00036712,14]
[377564610,1754442713138,-400.0,0.00036712,14]
[377564611,1754442713148,-400.0,0.00036712,14]
[377564612,1754442713158,-1572.81,0.00036712,14]
[377564613,1754442713167,-400.0,0.00036712,14]
[377564614,1754442713176,-400.0,0.00036712,14]
[377564615,1754442713187,-400.0,0.00036712,14]
[377564616,1754442713197,-976.67,0.00036712,14]
[377564617,1754442713206,-1857.15,0.00036712,14]
[377564618,1754442713216,-1346.41,0.00036712,14]
[377564619,1754442713227,-744.01,0.00036712,14]
[377564620,1754442713241,-1925.81,0.00036712,14]
[377564621,1754442713253,-2216.89,0.00036712,14]
[377564622,1754442713262,-659.92,0.00036712,14]
[377564623,1754442713272,-400.0,0.00036712,14]
[377564624,1754442713281,-959.38,0.00036712,14]
[377564625,1754442713291,-400.0,0.00036712,14]
[377564626,1754442713300,-400.0,0.00036712,14]
[377564627,1754442713310,-400.0,0.00036712,14]
[377564628,1754442713321,-2901.33,0.00036712,14]
[377564629,1754442713330,-1076.24,0.00036712,14]
[377564630,1754442713340,-1714.16,0.00036712,14]
[377564631,1754442713349,-1429.75,0.00036712,14]
[377564632,1754442713358,-2076.05,0.00036712,14]
[377564633,1754442713367,-403.07,0.00036712,14]
[377564634,1754442713376,-1106.3,0.00036712,14]
[377564635,1754442713385,-1733.29,0.00036712,14]
[377564636,1754442713395,-71180.7,0.00036712,14]
[377564637,1754442713404,-803.68,0.00036712,14]
[377564638,1754442713413,-530.62,0.00036712,14]
[377564639,1754442713423,-2097.99,0.00036712,14]
[377564640,1754442713432,-1403.33,0.00036712,14]
[377564641,1754442713442,-400.0,0.00036712,14]
[377564642,1754442713452,-865.88,0.00036712,14]
[377564643,1754442713463,-1054.54,0.00036712,14]
[377564644,1754442713472,-949.49,0.00036712,14]
[377564645,1754442713481,-708.86,0.00036712,14]
[377564646,1754442713491,-2531.64,0.00036712,14]
[377564647,1754442713500,-1028.9,0.00036712,14]
[377564648,1754442713510,-400.0,0.00036712,14]
[377564649,1754442713519,-462.06,0.00036712,14]
[377564650,1754442713528,-400.0,0.00036712,14]
[377564651,1754442713537,-746.56,0.00036712,14]
[377564652,1754442713547,-931.48,0.00036712,14]
[377564653,1754442713557,-2720.87,0.00036712,14]
[377564654,1754442713566,-1876.24,0.00036712,14]
[377564655,1754442713576,-400.0,0.00036712,14]
[377564656,1754442713585,-400.0,0.00036712,14]
[377564657,1754442713595,-1175.54,0.00036712,14]
[377564658,1754442713605,-400.0,0.00036712,14]
[377564659,1754442713615,-3000.64,0.00036712,14]
[377564660,1754442713624,-633.94,0.00036712,14]
[377564661,1754442713634,-400.0,0.00036712,14]
[377564662,1754442713643,-1225.57,0.00036712,14]
[377564663,1754442713653,-1902.8,0.00036712,14]
[377564664,1754442713662,-2045.59,0.00036712,14]
[377564665,1754442713672,-870.66,0.00036712,14]
[377564666,1754442713682,-434.21,0.00036712,14]
[377564667,1754442713691,-998.47,0.00036712,14]
[377564668,1754442713700,-400.0,0.00036712,14]
[377564669,1754442713710,-400.0,0.00036712,14]
[377564670,1754442713720,-1355.58,0.00036712,14]
[377564671,1754442713729,-400.0,0.00036712,14]
[377564672,1754442713739,-400.0,0.00036712,14]
[377564673,1754442713748,-1564.58,0.00036712,14]
[377564674,1754442713758,-1795.96,0.00036712,14]
[377564675,1754442713768,-400.0,0.00036712,14]
[377564676,1754442713777,-2344.91,0.00036712,14]
[377564677,1754442713788,-1873.15,0.00036712,14]
[377564678,1754442713799,-400.0,0.00036712,14]
[377564679,1754442713808,-1545.05,0.00036712,14]
[377564680,1754442713818,-400.0,0.00036712,14]
[377564681,1754442713827,-1667.5,0.00036712,14]
[377564682,1754442713837,-1836.42,0.00036712,14]
[377564683,1754442713846,-400.0,0.00036712,14]
[377564684,1754442713855,-1036.37,0.00036712,14]
[377564685,1754442713865,-1706.89,0.00036712,14]
[377564686,1754442713875,-500.3,0.00036712,14]
[377564687,1754442713884,-400.0,0.00036712,14]
[377564688,1754442713895,-1544.77,0.00036712,14]
[377564689,1754442713905,-485.72,0.00036712,14]
[377564690,1754442713914,-1224.22,0.00036712,14]
[377564691,1754442713925,-2426.19,0.00036712,14]
[377564692,1754442713935,-1248.82,0.00036712,14]
[377564693,1754442713945,-2397.5,0.00036712,14]
[377564694,1754442713955,-637.4,0.00036712,14]
[377564695,1754442713965,-400.0,0.00036712,14]
[377564696,1754442713975,-1674.96,0.00036712,14]
[377564697,1754442713985,-571.75,0.00036712,14]
[377564698,1754442713995,-798.91,0.00036712,14]
[377564699,1754442714005,-400.0,0.00036712,14]
[377564700,1754442714014,-1071.09,0.00036712,14]
[377564701,1754442714024,-674.78,0.00036712,14]
[377564702,1754442714033,-400.0,0.00036712,14]
[377564703,1754442714044,-1579.0,0.00036712,14]
[377564704,1754442714054,-845.65,0.00036712,14]
[377564705,1754442714063,-1796.24,0.00036712,14]
[377564706,1754442714072,-1157.39,0.00036712,14]
[377564707,1754442714082,-435.63,0.00036712,14]
[377564708,1754442714092,-1825.42,0.00036712,14]
[377564709,1754442714101,-414.19,0.00036712,14]
[377564710,1754442714111,-400.0,0.00036712,14]
[377564711,1754442714121,-688.85,0.00036712,14]
[377564712,1754442714130,-1026.68,0.00036712,14]
[377564713,1754442714140,-400.0,0.00036712,14]
[377564714,1754442714149,-400.0,0.00036712,14]
[377564715,1754442714158,-933.37,0.00036712,14]
[377564716,1754442714168,-512.39,0.00036712,14]
[377564717,1754442714178,-443.14,0.00036712,14]
[377564718,1754442714188,-1596.07,0.00036712,14]
[377564719,1754442714197,-400.0,0.00036712,14]
[377564720,1754442714207,-1081.6,0.00036712,14]
[377564721,1754442714216,-1677.89,0.00036712,14]
[377564722,1754442714227,-953.14,0.00036712,14]
[377564723,1754442714239,-2189.81,0.00036712,14]
[377564724,1754442714248,-400.0,0.00036712,14]
[377564725,1754442714258,-789.16,0.00036712,14]
[377564726,1754442714269,-1839.11,0.00036712,14]
[377564727,1754442714279,-899.95,0.00036712,14]
[377564728,1754442714289,-400.0,0.00036712,14]
[377564729,1754442714300,-151.0,0.00036712,7]
[377564730,1754442714311,-998.17,0.00036712,14]
[377564731,1754442714322,-944.7,0.00036712,14]
[377564732,1754442714332,-964.26,0.00036712,14]
[377564733,1754442714342,-1086.06,0.00036712,14]
[377564734,1754442714352,-151.0,0.00036712,7]
[377564735,1754442714362,-11077.98,0.00036712,14]
[377564736,1754442714372,-1724.68,0.00036712,14]
[377564737,1754442714383,-2662.37,0.00036712,14]
[377564738,1754442714393,-1927.37,0.00036712,14]
[377564739,1754442714403,-1852.32,0.00036712,14]
[377564740,1754442714413,-3043.44,0.00036712,14]
[377564741,1754442714423,-1367.44,0.00036712,14]
[377564742,1754442714433,-481.77,0.00036712,14]
[377564743,1754442714443,-400.0,0.00036712,14]
[377564744,1754442714452,-2168.63,0.00036712,14]
[377564745,1754442714462,-281.3879472,0.00036712,14]
[377564746,1754442714472,-1497.51,0.00036712,14]
[377564747,1754442714482,-519.57,0.00036712,14]
[377564748,1754442714492,-2308.05,0.00036712,14]
[377564749,1754442714502,-2166.93,0.00036712,14]
[377564750,1754442714512,-555.63,0.00036712,14]
[377564751,1754442714522,-694.12,0.00036712,14]
[377564752,1754442714532,-317.43529961,0.00036712,14]
[377564753,1754442714542,-831.42,0.00036712,14]
[377564754,1754442714552,-630.58,0.00036712,14]
[377564755,1754442714562,-400.0,0.00036712,14]
[377564756,1754442714572,-1347.12,0.00036712,14]
[377564757,1754442714582,-400.0,0.00036712,14]
[377564758,1754442714592,-1527.34,0.00036712,14]
[377564759,1754442714602,-992.97,0.00036712,14]
[377564760,1754442714612,-400.0,0.00036712,14]
[377564761,1754442714622,-179.08012644,0.00036712,14]
[377564762,1754442714633,-797.7,0.00036712,14]
[377564763,1754442714642,-774.04,0.00036712,14]
[377564764,1754442714652,-1482.49,0.00036712,14]
[377564765,1754442714662,-400.0,0.00036712,14]
[377564766,1754442714672,-856.6,0.00036712,14]
[377564767,1754442714682,-972.26,0.00036712,14]
[377564768,1754442714692,-829.38,0.00036712,14]
[377564769,1754442714702,-2155.65,0.00036712,14]